fUSD/lending_fUSD_20240904
["ID","MTS","AMOUNT","RATE_DAILY","PERIOD"]
[337159136,1725460232218,-8383.72374615,0.0001368,2]
[337159137,1725460232229,-563.10986677,0.0001368,2]
[337159138,1725460232241,-548.77352488,0.0001368,2]
[337159139,1725460232253,-862.07547104,0.0001368,2]
[337159140,1725460232268,-295.33202042,0.0001368,2]
[337159141,1725460232280,-552.99499924,0.0001368,2]
[337159142,1725460232291,-373.8216,0.0001368,2]
[337159147,1725460237825,-499.99,0.00013677,2]
[337159148,1725460237836,-4.43361793,0.0001368,2]
[337159149,1725460237856,-13088.76972362,0.0001368,2]
[337159150,1725460237874,-955.97027776,0.0001368,2]
[337159151,1725460237895,-4936.4916975,0.0001368,2]
[337159152,1725460237908,-1850.0,0.0001368,2]
[337159153,1725460237986,-880.12,0.0001368,2]
[337159154,1725460237997,-1372.2,0.0001368,2]
[337159155,1725460238010,-998.9649,0.0001368,2]
[337159156,1725460238021,-1765.0,0.0001368,2]
[337159157,1725460238187,-452.64,0.0001368,2]
[337159158,1725460238199,-451.57864314,0.0001368,2]
[337159159,1725460238211,-854.34805812,0.0001368,2]
[337159161,1725460238223,-855.00599979,0.0001368,2]
[337159162,1725460238234,-870.0340065,0.0001368,2]
[337159163,1725460238245,-3295.73985537,0.0001368,2]
[337159164,1725460238257,-1514.63437236,0.0001368,2]
[337159165,1725460238270,-644.59173948,0.0001368,2]
[337159166,1725460239967,-530.86535505,0.0001368,2]
[337159167,1725460239979,-194318.75348505,0.0001368,2]
[337159168,1725460240032,-489.17891229,0.0001368,2]
[337159169,1725460240044,-2400.0,0.0001368,2]
[337159181,1725460240576,-283.23461,0.0001368,2]
[337159262,1725460243459,-531.03582383,0.0001358,2]
[337159263,1725460243468,-700.67246679,0.0001368,2]
[337159264,1725460243479,-3032.5570114,0.0001368,2]
[337159275,1725460246160,-3559.9489424,0.0001368,2]
[337159276,1725460246295,-65074.70554683,0.0001368,2]
[337159277,1725460280239,1000.0,0.00013,2]
[337159278,1725460280948,1000.0,0.00013,2]
[337159279,1725460281022,1000.0,0.00013,2]
[337159280,1725460281468,1000.0,0.00013,2]
[337159281,1725460281720,1000.0,0.00013,2]
[337159282,1725460282561,1000.0,0.00013,2]
[337159283,1725460282902,1000.0,0.00013,2]
[337159284,1725460283244,1000.0,0.00013,2]
[337159285,1725460283743,1000.0,0.00013,2]
[337159286,1725460284089,1000.0,0.00013,2]
[337159287,1725460284688,1000.0,0.00013,2]
[337159288,1725460284842,1000.0,0.00013,2]
[337159289,1725460285130,1000.0,0.00013,2]
[337159290,1725460285457,1000.0,0.00013,2]
[337159291,1725460285802,1000.0,0.00013,2]
[337159292,1725460397180,250.0,0.0001283,2]
[337159293,1725460406289,14749.2522,0.00013097,2]
[337159294,1725460411474,2000.0,0.00026118,120]
[337159295,1725460437296,500.0,0.00026716,120]
[337159296,1725460457262,200.0,0.00025078,120]
[337159297,1725460464772,200.0,0.0001277,2]
[337159298,1725460468209,214.58,0.0001277,2]
[337159299,1725460604955,303.62,0.00010876,2]
[337159300,1725460605179,303.62,0.0001314,2]
[337159301,1725460625297,220.32,0.00012789,2]
[337159302,1725460637261,332.69,0.00027,120]
[337159303,1725460643020,881.92825,0.00013443,2]
[337159304,1725460925603,421.15547501,0.00013187,2]
[337159305,1725460988014,840.0,0.00012807,2]
[337159306,1725461021419,500.0,0.00026558,120]
[337159307,1725461049057,250.0,0.00012774,2]
[337159308,1725461056723,200.0,0.00024815,120]
[337159309,1725461124296,150.0,0.00012477,2]
[337159310,1725461144987,273.25,0.00010877,2]
[337159311,1725461145247,273.25,0.00013141,2]
[337159312,1725461148759,223.74,0.00012795,2]
[337159313,1725461165383,160.92,0.00012793,2]
[337159315,1725461358914,1202.0,0.000135,2]
[337159318,1725461412103,421.15547501,0.00013223,2]
[337159324,1725461432172,-304.0,0.00013511,2]
[337159325,1725461432183,-205.0,0.00013511,2]
[337159326,1725461432194,-159.380667,0.00013511,2]
[337159327,1725461432207,-150.0,0.00013534,2]
[337159328,1725461432219,-6500.0,0.0001358,2]
[337159329,1725461432234,-312.90926124,0.0001358,2]
[337159330,1725461432249,-2187.09073876,0.0001358,2]
[337159331,1725461432260,-150.0,0.0001364,2]
[337159332,1725461432272,-1256.25618,0.00013677,2]
[337159333,1725461432283,-6048.80557386,0.0001368,2]
[337159334,1725461432298,-577.5783648,0.0001368,2]
[337159335,1725461432311,-446.53436816,0.0001368,2]
[337159348,1725461438146,-343.26358931,0.0001368,2]
[337159349,1725461438191,-879.14563992,0.0001368,2]
[337159384,1725461438794,-509.88099461,0.0001368,2]
[337159388,1725461438816,-702.12138426,0.0001368,2]
[337159390,1725461438827,-296.50190526,0.0001368,2]
[337159392,1725461438838,-57105.5652135,0.0001368,2]
[337159394,1725461438849,-1886.88,0.0001368,2]
[337159396,1725461438860,-411.75599503,0.0001368,2]
[337159398,1725461438871,-14042.43253206,0.0001368,2]
[337159400,1725461438882,-1120.66502401,0.0001368,2]
[337159407,1725461438940,-1620.30294641,0.0001368,2]
[337159409,1725461438951,-12212.22040255,0.0001368,2]
[337159411,1725461438962,-30339.5,0.0001368,2]
[337159417,1725461439015,-878.53945113,0.0001368,2]
[337159419,1725461439026,-2191.61850656,0.0001368,2]
[337159421,1725461439037,-259.45495875,0.0001368,2]
[337159423,1725461439047,-2646.2132724,0.0001368,2]
[337159485,1725461440110,-978.0671965,0.0001368,2]
[337159486,1725461440122,-3994.32559728,0.0001368,2]
[337159487,1725461440134,-1109.54057501,0.0001368,2]
[337159488,1725461440164,-707.12336694,0.0001368,2]
[337159489,1725461440176,-2961.95,0.0001368,2]
[337159490,1725461440225,-527.39556223,0.0001368,2]
[337159491,1725461440283,-337.71410685,0.0001368,2]
[337159492,1725461440346,-273422.0191951,0.0001368,2]
[337159493,1725461440355,-1469.22607,0.0001368,2]
[337159494,1725461440364,-1469.22607,0.0001368,2]
[337159495,1725461440374,-1469.22608,0.0001368,2]
[337159496,1725461440383,-1469.22607,0.0001368,2]
[337159497,1725461440392,-1469.22607,0.0001368,2]
[337159499,1725461440402,-1469.22607,0.0001368,2]
[337159500,1725461440411,-7412.0839348,0.0001368,2]
[337159501,1725461440420,-1607.94443947,0.0001368,2]
[337159502,1725461440430,-151.23679885,0.00013691,2]
[337159503,1725461440439,-500.0,0.00013699,2]
[337159504,1725461440449,-200.0,0.00013699,2]
[337159505,1725461440458,-2751.0,0.00013699,2]
[337159506,1725461440467,-159.69,0.00013699,2]
[337159507,1725461440479,-169.79,0.00013699,2]
[337159508,1725461440489,-150.0,0.00013701,2]
[337159509,1725461440498,-150.0,0.00013731,2]
[337159510,1725461440507,-150.0,0.00013744,2]
[337159511,1725461440517,-150.0,0.00013758,2]
[337159512,1725461440526,-150.0,0.00013764,2]
[337159513,1725461440536,-500.0,0.00013769,2]
[337159514,1725461440545,-200.0,0.00013769,2]
[337159515,1725461440555,-175.18324583,0.0001378,2]
[337159516,1725461440565,-272.07680128,0.0001378,2]
[337159517,1725461440575,-172.76901356,0.0001378,2]
[337159518,1725461440585,-2130.08629699,0.0001378,2]
[337159519,1725461440595,-150.0,0.00013815,2]
[337159520,1725461440605,-164.6740758,0.00013816,2]
[337159521,1725461440615,-150.0,0.00013817,2]
[337159522,1725461440624,-230.6938944,0.00013851,2]
[337159523,1725461440634,-153.51,0.0001386,2]
[337159524,1725461440643,-150.0,0.00013864,2]
[337159525,1725461440653,-25637.98052824,0.00013869,2]
[337159526,1725461440662,-153.51,0.0001387,2]
[337159527,1725461440671,-153.51,0.0001387,2]
[337159528,1725461440681,-153.51,0.0001387,2]
[337159529,1725461440690,-153.51,0.0001387,2]
[337159530,1725461440700,-153.51,0.0001387,2]
[337159531,1725461440711,-153.51,0.0001387,2]
[337159532,1725461440720,-153.51,0.0001387,2]
[337159533,1725461440733,-153.51,0.0001387,2]
[337159534,1725461440742,-153.51,0.0001387,2]
[337159535,1725461440752,-153.51,0.0001387,2]
[337159536,1725461440761,-153.51,0.0001387,2]
[337159537,1725461440770,-153.51,0.0001387,2]
[337159538,1725461440779,-153.51,0.0001387,2]
[337159539,1725461440788,-153.51,0.0001387,2]
[337159540,1725461440798,-153.51,0.0001387,2]
[337159541,1725461440807,-153.51,0.0001387,2]
[337159542,1725461440816,-153.51,0.0001387,2]
[337159543,1725461440825,-153.51,0.0001387,2]
[337159544,1725461440835,-153.51,0.0001387,2]
[337159545,1725461440844,-153.51,0.0001387,2]
[337159546,1725461440853,-153.51,0.0001387,2]
[337159547,1725461440863,-153.51,0.0001387,2]
[337159548,1725461440872,-153.51,0.0001387,2]
[337159549,1725461440881,-153.51,0.0001387,2]
[337159550,1725461440891,-153.51,0.0001387,2]
[337159551,1725461440901,-153.51,0.0001387,2]
[337159552,1725461440910,-1000.0,0.0001387,2]
[337159553,1725461440919,-1000.0,0.0001387,2]
[337159554,1725461440929,-1000.0,0.0001387,2]
[337159555,1725461440938,-1000.0,0.0001387,2]
[337159556,1725461440947,-1000.0,0.0001387,2]
[337159557,1725461440957,-1000.0,0.0001387,2]
[337159558,1725461440967,-1000.0,0.0001387,2]
[337159559,1725461440983,-1000.0,0.0001387,2]
[337159560,1725461440992,-1000.0,0.0001387,2]
[337159561,1725461441002,-1000.0,0.0001387,2]
[337159562,1725461441012,-1000.0,0.0001387,2]
[337159563,1725461441021,-1000.0,0.0001387,2]
[337159564,1725461441031,-1000.0,0.0001387,2]
[337159565,1725461441040,-1000.0,0.0001387,2]
[337159566,1725461441049,-1000.0,0.0001387,2]
[337159567,1725461441059,-1000.0,0.0001387,2]
[337159568,1725461441068,-1000.0,0.0001387,2]
[337159569,1725461441078,-1000.0,0.0001387,2]
[337159570,1725461441088,-1000.0,0.0001387,2]
[337159571,1725461441098,-1000.0,0.0001387,2]
[337159572,1725461441108,-1000.0,0.0001387,2]
[337159573,1725461441118,-1000.0,0.0001387,2]
[337159574,1725461441127,-1000.0,0.0001387,2]
[337159575,1725461441137,-1000.0,0.0001387,2]
[337159576,1725461441146,-1000.0,0.0001387,2]
[337159577,1725461441156,-1000.0,0.0001387,2]
[337159578,1725461441165,-1000.0,0.0001387,2]
[337159579,1725461441174,-1000.0,0.0001387,2]
[337159580,1725461441183,-1000.0,0.0001387,2]
[337159581,1725461441194,-1000.0,0.0001387,2]
[337159582,1725461441205,-1000.0,0.0001387,2]
[337159583,1725461441215,-467.0,0.0001387,2]
[337159584,1725461441231,-1000.0,0.0001387,2]
[337159585,1725461441243,-1000.0,0.0001387,2]
[337159586,1725461441252,-1000.0,0.0001387,2]
[337159587,1725461441261,-1000.0,0.0001387,2]
[337159588,1725461441271,-1000.0,0.0001387,2]
[337159589,1725461441283,-1000.0,0.0001387,2]
[337159590,1725461441292,-1000.0,0.0001387,2]
[337159591,1725461441301,-1000.0,0.0001387,2]
[337159592,1725461441311,-1000.0,0.0001387,2]
[337159593,1725461441321,-1000.0,0.0001387,2]
[337159594,1725461441330,-1000.0,0.0001387,2]
[337159595,1725461441339,-1077.0,0.0001387,2]
[337159596,1725461441349,-500.0,0.00013873,2]
[337159597,1725461441358,-480.09616384,0.00013873,2]
[337159598,1725461441368,-158.19883124,0.00013873,2]
[337159599,1725461441378,-160.2013481,0.00013873,2]
[337159600,1725461441387,-162.10744014,0.00013873,2]
[337159601,1725461441396,-160.20134485,0.00013873,2]
[337159602,1725461441405,-300.37752158,0.00013873,2]
[337159603,1725461441414,-158.19883808,0.00013873,2]
[337159604,1725461441424,-160.2013481,0.00013873,2]
[337159605,1725461441433,-160.19584522,0.00013873,2]
[337159606,1725461441442,-160.20135551,0.00013873,2]
[337159607,1725461441451,-200.25168107,0.00013873,2]
[337159608,1725461441460,-318.40349515,0.00013873,2]
[337159609,1725461441469,-158.20047868,0.00013873,2]
[337159610,1725461441484,-158.69946044,0.00013873,2]
[337159611,1725461441494,-203.14134467,0.00013873,2]
[337159612,1725461441503,-550.65851955,0.00013873,2]
[337159613,1725461441512,-196.76177432,0.00013873,2]
[337159614,1725461441522,-158.61915799,0.00013873,2]
[337159615,1725461441532,-160.20134485,0.00013873,2]
[337159616,1725461441541,-158.57017727,0.00013873,2]
[337159617,1725461441550,-320.34917533,0.00013873,2]
[337159618,1725461441559,-160.20134498,0.00013873,2]
[337159619,1725461441569,-546.57030163,0.00013877,2]
[337159620,1725461441578,-4372.56241304,0.00013877,2]
[337159621,1725461441587,-794.24696768,0.00013879,2]
[337159622,1725461441596,-1193.98934041,0.00013879,2]
[337159623,1725461441605,-157.39140676,0.00013879,2]
[337159624,1725461441615,-695.0,0.00013879,2]
[337159625,1725461441624,-323975.14059013,0.0001388,2]
[337159626,1725461442181,-15607.50524251,0.0001388,2]
[337159627,1725461442192,-2840.5,0.0001388,2]
[337159641,1725461443105,-8784.8651196,0.0001358,2]
[337159642,1725461443115,-14197.4911572,0.0001388,2]
[337159643,1725461443427,-1136.44,0.0001388,2]
[337159645,1725461443439,-511.149995,0.0001388,2]
[337159647,1725461443451,-2847.45,0.0001388,2]
[337159649,1725461443462,-2999.45021371,0.0001388,2]
[337159656,1725461443593,-240976.18980665,0.0001388,2]
[337159657,1725461443605,-32694.25919995,0.0001388,2]
[337159663,1725461446352,-3633.78769714,0.0001388,2]
[337159664,1725461446364,-2433.67321993,0.0001388,2]
[337159665,1725461446375,-279.37000864,0.0001388,2]
[337159667,1725461470452,260.7,0.00013173,2]
[337159668,1725461475948,400.0,0.000133,4]
[337159669,1725461478106,900.0,0.000134,4]
[337159670,1725461480177,1300.0,0.000135,4]
[337159671,1725461499038,1148.36,0.00013064,2]
[337159672,1725461511428,328.0,0.00013071,2]
[337159673,1725461537388,196.27,0.00010959,2]
[337159674,1725461556548,150.39,0.00012984,2]
[337159675,1725461566318,250.0,0.00012984,2]
[337159676,1725461611667,183.2610944,0.00012919,2]
[337159677,1725461613593,2000.0,0.00025888,120]
[337159678,1725461640998,500.0,0.00025574,120]
[337159679,1725461652341,250.0,0.000123,2]
[337159680,1725461664538,2656.08126695,0.000135,2]
[337159681,1725461671697,200.0,0.00025555,120]
[337159682,1725461673325,221.0,0.00012923,2]
[337159683,1725461676756,160.92,0.00012933,2]
[337159684,1725461726661,303.28,0.00011011,2]
[337159685,1725461727256,303.28,0.00013275,2]
[337159686,1725461741476,250.0,0.00012929,2]
[337159687,1725461840501,250.0,0.00012927,2]
[337159688,1725461854043,550.0,0.00011,2]
[337159689,1725461855422,600.0,0.00013,2]
[337159690,1725461868715,3280.42,0.00012927,2]
[337159691,1725461901263,421.15547501,0.00013473,2]
[337159692,1725462002894,391.06,0.00012941,2]
[337159693,1725462019198,737.6,0.00012903,2]
[337159694,1725462057961,3098.2828,0.000135,2]
[337159695,1725462072714,484.98016362,0.00012909,2]
[337159696,1725462072739,972.68983638,0.00012909,2]
[337159697,1725462073671,250.0,0.00012909,2]
[337159698,1725462098420,265.24194873,0.000135,2]
[337159699,1725462118505,448.92,0.00013016,2]
[337159700,1725462132098,151.59,0.00012906,2]
[337159701,1725462133718,2000.0,0.00012906,2]
[337159702,1725462196603,825.41,0.00012912,2]
[337159703,1725462211368,2000.0,0.00025642,120]
[337159704,1725462211712,221.04,0.000129,2]
[337159705,1725462242076,200.0,0.00025604,120]
[337159706,1725462302136,1000.0,0.00027,120]
[337159707,1725462346021,272.95,0.00011015,2]
[337159708,1725462346232,272.95,0.00013279,2]
[337159710,1725462409982,421.15547501,0.00013488,2]
[337159711,1725462435862,400.0,0.000133,4]
[337159712,1725462438007,900.0,0.000134,4]
[337159713,1725462440665,1300.0,0.000135,4]
[337159714,1725462451673,-274.0,0.0001388,31]
[337159715,1725462462946,-300.0,0.00013599,2]
[337159716,1725462462973,-13419.95382316,0.000136,2]
[337159717,1725462462993,-269.147184,0.000136,2]
[337159718,1725462463016,-1800.0,0.000136,4]
[337159719,1725462463037,-150.0,0.00013698,2]
[337159720,1725462463056,-184.23,0.00013699,2]
[337159721,1725462463076,-500.0,0.00013699,2]
[337159722,1725462463095,-2751.0,0.00013699,2]
[337159723,1725462463115,-159.69,0.00013699,2]
[337159724,1725462463135,-200.0,0.00013699,2]
[337159725,1725462463155,-169.79,0.00013699,2]
[337159726,1725462463175,-1268.1981676,0.00013699,2]
[337159727,1725462463196,-2300.0,0.000137,5]
[337159728,1725462463217,-2663.87632,0.0001374,2]
[337159729,1725462463412,-531.03582383,0.0001378,2]
[337159730,1725462463432,-1000.0,0.0001378,2]
[337159731,1725462463469,-175.18324582,0.0001378,2]
[337159732,1725462463490,-172.76901356,0.0001378,2]
[337159733,1725462463512,-163.25656162,0.0001378,2]
[337159734,1725462463536,-400.0,0.000138,5]
[337159735,1725462463559,-1000.0,0.00013812,2]
[337159736,1725462463581,-1000.0,0.00013812,2]
[337159737,1725462463605,-1000.0,0.00013812,2]
[337159738,1725462463628,-1000.0,0.00013812,2]
[337159739,1725462463650,-1000.0,0.00013812,2]
[337159740,1725462463671,-364.68048593,0.00013812,2]
[337159741,1725462463694,-1000.0,0.00013812,2]
[337159742,1725462463715,-1000.0,0.00013812,2]
[337159743,1725462463737,-1000.0,0.00013812,2]
[337159744,1725462463759,-1000.0,0.00013812,2]
[337159745,1725462463780,-1000.0,0.00013812,2]
[337159746,1725462463801,-1000.0,0.00013812,2]
[337159747,1725462463823,-1000.0,0.00013812,2]
[337159748,1725462463844,-1000.0,0.00013812,2]
[337159749,1725462463866,-1000.0,0.00013812,2]
[337159750,1725462463888,-1000.0,0.00013812,2]
[337159751,1725462463910,-1000.0,0.00013812,2]
[337159752,1725462463932,-1000.0,0.00013812,2]
[337159753,1725462463978,-1000.0,0.00013812,2]
[337159754,1725462464000,-1000.0,0.00013812,2]
[337159755,1725462464021,-1000.0,0.00013812,2]
[337159756,1725462464044,-156.81,0.0001387,2]
[337159757,1725462464068,-156.81,0.0001387,2]
[337159758,1725462464090,-499.99,0.00013873,2]
[337159759,1725462464111,-209.57937448,0.00013873,2]
[337159760,1725462489019,-8739.48341318,0.0001378,2]
[337159761,1725462489040,-199.43062552,0.00013873,2]
[337159762,1725462489061,-300.0,0.00013878,2]
[337159763,1725462489082,-761.0859613,0.00013879,2]
[337159764,1725462510416,-806.01162972,0.0001378,2]
[337159765,1725462510437,-500.0,0.000138,2]
[337159766,1725462510458,-1000.0,0.00013879,2]
[337159767,1725462510480,-693.98837028,0.00013879,2]
[337159768,1725462518083,-500.0,0.00013878,2]
[337159769,1725462518103,-306.01162972,0.00013879,2]
[337159770,1725462518124,-193.98837028,0.00013879,2]
[337159771,1725462539190,195.53,0.00013054,2]
[337159772,1725462583583,409.92,0.00013054,2]
[337159773,1725462592874,500.0,0.00027,120]
[337159774,1725462602184,500.0,0.00027,120]
[337159775,1725462620238,250.0,0.00013025,2]
[337159793,1725462632596,-163.25656161,0.0001378,2]
[337159794,1725462632607,-537.34108648,0.0001378,2]
[337159795,1725462632616,-3.15042188,0.000138,2]
[337159796,1725462632636,-496.84957812,0.000138,2]
[337159797,1725462632646,-163.25656161,0.00013804,2]
[337159798,1725462632656,-163.25656161,0.00013828,2]
[337159799,1725462632666,-163.25656161,0.00013852,2]
[337159800,1725462632677,-300.0,0.00013878,2]
[337159801,1725462632687,-213.38073705,0.00013879,2]
[337159803,1725462633117,-592.63089267,0.00013879,2]
[337159804,1725462633127,-884.15628982,0.00013879,2]
[337159805,1725462633148,-115.84371018,0.00013879,2]
[337159806,1725462633158,-1000.0,0.00013879,2]
[337159807,1725462633168,-1000.0,0.00013879,2]
[337159808,1725462633179,-1110.28091695,0.00013879,5]
[337159809,1725462633189,-9427.11361759,0.00013879,2]
[337159810,1725462633201,-3118.66555,0.00013879,2]
[337159811,1725462633213,-1012.2128544,0.00013879,2]
[337159812,1725462635699,500.0,0.00027,120]
[337159827,1725462638508,-163.25656161,0.00013876,2]
[337159828,1725462638517,-1051.2660912,0.00013879,2]
[337159829,1725462638552,-364.55288824,0.00013879,2]
[337159830,1725462638695,-1231.76374629,0.00013879,2]
[337159831,1725462638706,-13450.4508461,0.00013879,2]
[337159832,1725462638718,-11071.74888671,0.00013879,2]
[337159833,1725462638730,-1824.99,0.00013879,2]
[337159995,1725462640394,-422.41843359,0.00013879,2]
[337159997,1725462640407,-1261.96765702,0.00013879,2]
[337160000,1725462640421,-488.8418985,0.00013879,2]
[337160002,1725462640433,-518.20903483,0.00013879,2]
[337160005,1725462640453,-834.30484756,0.00013879,2]
[337160234,1725462645386,-500.0,0.00013699,2]
[337160235,1725462645396,-208809.42167125,0.00013879,2]
[337160236,1725462645406,-1819.42850764,0.00013879,2]
[337160237,1725462645415,-43851.22977263,0.0001388,2]
[337160238,1725462645426,-255.45901197,0.0001388,2]
[337160239,1725462645450,-517468.69585522,0.0001388,2]
[337160240,1725462645459,-1721834.13758296,0.0001388,2]
[337160241,1725462645482,-1252.2061692,0.0001388,2]
[337160242,1725462645493,-8984.72000016,0.0001388,2]
[337160243,1725462645504,-2889.21434103,0.0001388,2]
[337160244,1725462645516,-1339.2,0.0001388,2]
[337160248,1725462646312,-2886.50506581,0.0001388,2]
[337160249,1725462646330,-280.48498782,0.0001388,2]
[337160250,1725462646650,-6140.26818369,0.0001388,2]
[337160251,1725462646662,-289325.7784885,0.0001388,2]
[337160252,1725462646673,-2890.9,0.0001388,2]
[337160253,1725462646684,-611.81478294,0.0001388,2]
[337160254,1725462646695,-1341.6,0.0001388,2]
[337160284,1725462647203,-22680.21824106,0.0001388,2]
[337160285,1725462664951,286.74,0.00010959,2]
[337160286,1725462684230,1113.38,0.00012991,2]
[337160287,1725462687808,500.0,0.00027,120]
[337160288,1725462687996,1895.11,0.00012991,2]
[337160289,1725462703150,150.39,0.00012978,2]
[337160290,1725462710012,500.0,0.00027,120]
[337160291,1725462718834,500.0,0.00027,120]
[337160292,1725462736881,223.2,0.00012978,2]
[337160293,1725462739690,11773.78273988,0.00012978,2]
[337160294,1725462739718,12126.21726012,0.00012978,2]
[337160295,1725462761214,410.19,0.00012978,2]
[337160296,1725462764127,165.06,0.00013007,2]
[337160297,1725462765328,282.0,0.00027,120]
[337160298,1725462767333,2866.08,0.00012923,2]
[337160299,1725462773196,473.0,0.00027,120]
[337160300,1725462804304,432.0,0.00027,120]
[337160301,1725462817631,2000.0,0.00027,120]
[337160302,1725462826462,178.79,0.00013469,2]
[337160303,1725462828341,3074.3,0.00012921,2]
[337160304,1725462847749,802.64,0.00012888,2]
[337160305,1725462903508,800.0,0.00026986,120]
[337160306,1725462981681,665.0,0.00027,120]
[337160307,1725462987906,1500.0,0.00013007,2]
[337160308,1725463029242,410.39,0.00012969,2]
[337160309,1725463034004,300.18,0.00010948,2]
[337160310,1725463034261,300.18,0.00013212,2]
[337160311,1725463035742,250.0,0.00012866,2]
[337160312,1725463083565,672.06,0.00013007,2]
[337160313,1725463097804,285.04,0.00013007,2]
[337160314,1725463119163,250.0,0.00012854,2]
[337160315,1725463146647,1408.87273988,0.00012847,2]
[337160316,1725463146676,3794.26726012,0.00012847,2]
[337160317,1725463148954,2000.0,0.00025,60]
[337160318,1725463170112,18443.53,0.00013007,2]
[337160319,1725463192073,325.520945,0.0001349,2]
[337160320,1725463214744,250.0,0.00012842,2]
[337160321,1725463234686,223.2,0.00013007,2]
[337160322,1725463238615,9277.21,0.00012841,2]
[337160323,1725463239492,13020.63751308,0.00012841,2]
[337160324,1725463239525,119.65248692,0.00012841,2]
[337160325,1725463292024,1164.64751308,0.00013,2]
[337160326,1725463292047,2086.72248692,0.00013,2]
[337160331,1725463528185,150.0,0.00012477,2]
[337160332,1725463546526,270.16,0.00011089,2]
[337160333,1725463601159,285.04,0.00012824,2]
[337160334,1725463608391,462.35,0.00012824,2]
[337160335,1725463671063,550.0,0.00011,2]
[337160336,1725463672190,600.0,0.00013,2]
[337160346,1725463832426,-221.44,0.00013007,2]
[337160348,1725463832437,-4396.0,0.00013333,2]
[337160350,1725463832447,-270.16,0.00013353,2]
[337160351,1725463832457,-421.15547501,0.00013441,2]
[337160352,1725463832467,-300.0,0.00013524,2]
[337160353,1725463832476,-514.9049,0.00013525,2]
[337160354,1725463832486,-8071.82952167,0.00013525,2]
[337160355,1725463832496,-225.0,0.00013559,2]
[337160356,1725463832505,-150.0,0.00013625,2]
[337160357,1725463832515,-8173.89340449,0.0001368,2]
[337160358,1725463832525,-5112.50244001,0.0001368,2]
[337160359,1725463832534,-159.69,0.00013699,2]
[337160360,1725463832543,-169.79,0.00013699,2]
[337160361,1725463832553,-200.0,0.00013699,2]
[337160362,1725463832562,-185.33,0.00013699,2]
[337160363,1725463832572,-500.0,0.00013699,2]
[337160364,1725463832581,-2219.89693,0.0001374,2]
[337160365,1725463832591,-150.0,0.0001374,2]
[337160366,1725463832601,-204.39729,0.00013741,2]
[337160367,1725463832610,-150.0,0.00013749,2]
[337160368,1725463832620,-2898.24649925,0.0001375,2]
[337160369,1725463832629,-2074.827,0.0001376,2]
[337160370,1725463832639,-500.0,0.00013769,2]
[337160371,1725463832650,-200.0,0.00013769,2]
[337160372,1725463832660,-77252.579,0.0001377,2]
[337160373,1725463832669,-1000.0,0.0001377,2]
[337160374,1725463832679,-6498.0575,0.0001377,2]
[337160375,1725463832689,-1263.1381,0.0001377,2]
[337160376,1725463832699,-7500.0,0.0001377,2]
[337160377,1725463832710,-12220.6027,0.00013779,2]
[337160378,1725463832721,-155.94268703,0.0001378,2]
[337160379,1725463832730,-21124.7278,0.0001378,2]
[337160380,1725463832740,-5976.1879,0.0001378,2]
[337160381,1725463832750,-16094.0578,0.0001378,2]
[337160382,1725463832760,-1000.0,0.0001378,2]
[337160383,1725463832770,-1209.4532,0.0001378,2]
[337160384,1725463832780,-2217.2523,0.0001378,2]
[337160385,1725463832789,-214.03269912,0.0001378,2]